bitfinex-derivatives/quotes_SOLF0:USTF0_20250113
["timestamp","ask_amount","ask_price","bid_price","bid_amount"]
[1736736278056,11.27489151,185.6,185.49,4.8317]
[1736736278755,2.6953,185.59,185.53,2.6961]
[1736736278950,11.27489151,185.6,185.49,4.8317]
[1736736279356,2.6951,185.61,185.55,2.6959]
[1736736279959,13.96959151,185.63,185.57,2.6955]
[1736736282963,2.695,185.61,185.55,2.6957]
[1736736283162,11.27489151,185.63,185.51,11.27489151]
[1736736283568,13.96959151,185.63,185.51,11.27489151]
[1736736283965,11.27489151,185.63,185.51,11.27489151]
[1736736284164,11.27489151,185.63,185.55,2.6958]
[1736736284963,2.6953,185.59,185.53,2.696]
[1736736285465,2.6951,185.61,185.55,2.6958]
[1736736285668,11.27489151,185.63,185.55,2.6958]
[1736736287072,2.6951,185.6,185.55,2.6958]
[1736736287471,11.27489151,185.63,185.55,2.6958]
[1736736287673,11.27489151,185.63,185.51,11.27489151]
[1736736287974,2.695,185.61,185.56,2.6957]
[1736736289561,2.6951,185.6,185.54,2.6959]
[1736736290872,11.27489151,185.63,185.51,11.27489151]
[1736736291469,2.6954,185.58,185.53,2.6961]
[1736736292473,2.6957,185.57,185.49,4.8317]
[1736736292868,11.27489151,185.6,185.49,4.8317]
[1736736293077,2.6956,185.57,185.49,4.8317]
[1736736293366,11.27489151,185.6,185.49,4.8317]
[1736736293571,2.6956,185.57,185.5,2.6964]
[1736736293771,11.27489151,185.57,185.44,22.35785041]
[1736736294024,11.27489151,185.54,185.43,18.72750831]
[1736736294875,11.27489151,185.54,185.43,11.27489151]
[1736736295070,2.6959,185.55,185.46,11.27489151]
[1736736295373,13.97049151,185.57,185.51,2.6963]
[1736736295767,13.97049151,185.57,185.46,11.27489151]
[1736736295970,13.97049151,185.57,185.47,1.6164]
[1736736296168,13.97049151,185.57,185.5,2.6966]
[1736736296369,2.6957,185.56,185.47,4.8424]
[1736736296569,2.6957,185.56,185.46,11.27489151]
[1736736296769,11.27489151,185.54,185.43,4.8424]
[1736736297072,11.27489151,185.51,185.43,4.8424]
[1736736297473,13.97089151,185.54,185.43,4.8424]
[1736736298073,2.6962,185.53,185.47,2.6969]
[1736736298271,11.27489151,185.54,185.43,4.8424]
[1736736299275,11.27489151,185.54,185.43,16.11729151]
[1736736299477,11.27489151,185.54,185.49,2.6967]
[1736736299869,11.27489151,185.54,185.43,16.11729151]
[1736736300677,11.27489151,185.54,185.49,2.6967]
[1736736300975,11.27489151,185.57,185.46,11.27489151]
[1736736301178,4.7818,185.59,185.53,2.696]
[1736736301473,13.97009151,185.6,185.49,11.27489151]
[1736736301872,13.97009151,185.6,185.54,2.696]
[1736736302072,13.97009151,185.6,185.49,11.27489151]
[1736736302275,13.97009151,185.6,185.5,1.5292]
[1736736302276,2.6954,185.58,185.5,1.5292]
[1736736302569,11.27489151,185.6,185.52,2.6963]
[1736736302772,11.27489151,185.57,185.46,11.27489151]
[1736736302978,2.696,185.55,185.49,2.6967]
[1736736303277,11.27489151,185.54,185.44,1.5292]
[1736736303475,2.6963,185.52,185.46,2.6971]
[1736736304175,2.6962,185.53,185.47,2.697]
[1736736306473,11.27489151,185.54,185.44,1.5292]
[1736736306678,3.0997,185.56,185.46,11.27489151]
[1736736306975,1.5766,185.56,185.46,11.27489151]
[1736736307179,11.27489151,185.57,185.49,2.6967]
[1736736307371,11.27489151,185.57,185.46,11.27489151]
[1736736307872,11.27489151,185.57,185.49,2.6967]
[1736736308178,11.27489151,185.57,185.44,1.5292]
[1736736308365,1.5619,185.56,185.44,1.5292]
[1736736309079,2.6962,185.53,185.43,11.27489151]
[1736736310470,2.6962,185.53,185.48,2.6968]
[1736736311474,2.696,185.55,185.48,2.6968]
[1736736311878,1.5619,185.56,185.48,2.6968]
[1736736312271,2.696,185.54,185.49,2.6967]
[1736736312475,1.5619,185.56,185.46,11.27489151]
[1736736312672,3.2589,185.62,185.46,11.27489151]
[1736736312877,2.6953,185.59,185.54,2.696]
[1736736313176,1.556,185.61,185.5,11.27489151]
[1736736313374,2.6954,185.59,185.53,2.6961]
[1736736313777,1.556,185.61,185.53,2.6961]
[1736736314080,2.6956,185.57,185.5,11.27489151]
[1736736314278,11.27489151,185.6,185.51,2.6963]
[1736736314678,2.6959,185.55,185.47,11.27489151]
[1736736314881,11.27489151,185.57,185.44,11.27489151]
[1736736315381,2.6959,185.56,185.44,11.27489151]
[1736736315883,2.6959,185.56,185.47,11.27489151]
[1736736316682,2.6959,185.56,185.5,2.6965]
[1736736316883,2.6959,185.56,185.47,11.27489151]
[1736736317085,11.27489151,185.6,185.47,11.27489151]
[1736736317785,2.6953,185.59,185.5,11.27489151]
[1736736318882,1.556,185.61,185.5,11.27489151]
[1736736319081,11.27489151,185.68,185.56,11.27489151]
[1736736319283,17.07489151,185.68,185.56,11.27489151]
[1736736319585,2.6944,185.66,185.6,2.695]
[1736736321174,2.6941,185.67,185.62,2.6948]
[1736736321382,11.27489151,185.68,185.56,11.27489151]
[1736736321681,11.27489151,185.68,185.63,2.6946]
[1736736321881,2.6938,185.69,185.63,2.6946]
[1736736322278,20.40409151,185.71,185.59,11.27489151]
[1736736322480,2.694,185.68,185.62,2.6947]
[1736736322686,2.694,185.68,185.59,11.27489151]
[1736736323183,20.40409151,185.71,185.59,11.27489151]
[1736736323487,14.60409151,185.71,185.59,11.27489151]
[1736736324186,17.29759151,185.71,185.65,2.6944]
[1736736324777,17.29759151,185.71,185.59,11.27489151]
[1736736324778,8.93102967,185.8,185.62,11.27489151]
[1736736324981,11.27489151,185.76,185.65,11.27489151]
[1736736325886,13.96769151,185.76,185.65,11.27489151]
[1736736326885,11.27489151,185.76,185.65,11.27489151]
[1736736327086,17.07489151,185.79,185.65,11.27489151]
[1736736327483,11.27489151,185.79,185.7,2.6936]
[1736736327982,11.27489151,185.79,185.66,1.6594]
[1736736328384,11.27489151,185.76,185.65,11.27489151]
[1736736328581,11.27489151,185.76,185.63,1.5788]
[1736736328780,11.27489151,185.7,185.6,1.6594]
[1736736329185,11.27489151,185.7,185.56,1.5862]
[1736736329394,2.6943,185.66,185.61,2.6949]
[1736736329584,11.27489151,185.7,185.56,1.5862]
[1736736329986,2.6941,185.68,185.62,2.6948]
[1736736330187,11.27489151,185.7,185.62,2.6948]
[1736736330894,2.694,185.69,185.62,2.6948]
[1736736331491,2.6941,185.67,185.62,2.6948]
[1736736331689,11.27489151,185.7,185.6,2.695]
[1736736331886,11.27489151,185.67,185.56,11.27489151]
[1736736332596,11.27489151,185.67,185.59,2.6952]
[1736736332787,11.27489151,185.67,185.56,11.27489151]
[1736736332987,2.6948,185.63,185.57,2.6954]
[1736736333791,2.6952,185.6,185.5,1.5973]
[1736736333993,5.8,185.63,185.5,1.5973]
[1736736334193,5.8,185.63,185.52,11.27489151]
[1736736334596,8.4948,185.63,185.57,2.6955]
[1736736334996,7.3631,185.66,185.6,2.695]
[1736736335297,7.3631,185.66,185.57,11.27489151]
[1736736335497,4.6688,185.66,185.57,11.27489151]
[1736736335798,2.6944,185.65,185.6,2.695]
[1736736336493,2.6944,185.65,185.59,2.6953]
[1736736336693,15.94369151,185.66,185.54,11.27489151]
[1736736337093,15.94369151,185.66,185.55,2.6957]
[1736736337293,2.695,185.62,185.55,2.6957]
[1736736337495,15.94369151,185.66,185.54,11.27489151]
[1736736338397,2.6953,185.6,185.54,13.97079151]
[1736736339200,2.6953,185.59,185.54,13.97079151]
[1736736341502,2.6953,185.59,185.54,11.27489151]
[1736736341803,5.8,185.63,185.54,11.27489151]
[1736736342104,17.07489151,185.63,185.51,11.27489151]
[1736736342305,17.07489151,185.63,185.5,1.5973]
[1736736342503,11.27489151,185.6,185.48,11.27489151]
[1736736342706,1.5793,185.59,185.48,11.27489151]
[1736736342892,1.5793,185.59,185.5,2.6966]
[1736736342893,2.6959,185.55,185.5,2.6966]
[1736736343093,3.2305,185.58,185.5,2.6966]
[1736736344110,2.6957,185.56,185.5,2.6966]
[1736736346913,2.6959,185.55,185.5,2.6966]
[1736736353808,3.2305,185.58,185.48,11.27489151]
[1736736354009,3.2305,185.58,185.46,1.5479]
[1736736354010,11.27489151,185.57,185.46,1.5479]
[1736736354610,2.6962,185.53,185.47,2.6969]
[1736736355015,2.6962,185.53,185.46,1.5479]
[1736736355213,2.6962,185.53,185.48,2.6968]
[1736736355413,2.6963,185.52,185.46,1.5479]
[1736736356017,2.6963,185.52,185.47,2.6969]
[1736736356818,11.27489151,185.57,185.47,2.6969]
[1736736357421,2.6964,185.51,185.46,4.245]
[1736736357624,2.6964,185.51,185.46,2.6971]
[1736736358519,11.27489151,185.57,185.45,11.27489151]
[1736736358725,2.6963,185.53,185.47,2.697]
[1736736359223,2.6963,185.52,185.47,2.697]
[1736736359523,2.6963,185.52,185.47,9.93385894]
[1736736361725,7.23685894,185.52,185.44,5.9988]
[1736736361923,2.6966,185.5,185.45,7.23685894]
[1736736362719,7.23685894,185.5,185.31,127.74906721]
[1736736362923,7.23685894,185.48,185.42,7.23685894]
[1736736363321,2.6971,185.47,185.42,9.93445894]
[1736736364030,5.0358,185.51,185.44,7.23685894]
[1736736364224,5.0358,185.51,185.46,7.23685894]
[1736736364418,1.6762,185.51,185.32,4.8304]
[1736736364624,1.6762,185.51,185.46,7.23685894]
[1736736364821,1.6762,185.51,185.44,7.23685894]
[1736736365025,7.23685894,185.5,185.44,7.23685894]
[1736736365524,7.23685894,185.5,185.44,9.93425894]
[1736736365725,7.23685894,185.5,185.44,7.23685894]
[1736736367125,2.6972,185.46,185.42,2.6977]
[1736736367332,1.6762,185.51,185.41,7.23685894]
[1736736367333,7.23685894,185.48,185.41,7.23685894]
[1736736367533,1.6762,185.51,185.32,4.8304]
[1736736367534,7.23685894,185.46,185.32,4.8304]
[1736736367832,2.6976,185.43,185.39,7.23685894]
[1736736369127,5.74,185.47,185.39,7.23685894]
[1736736369332,5.74,185.47,185.32,4.8304]
[1736736369534,5.74,185.47,185.41,7.23685894]
[1736736369837,7.23685894,185.46,185.32,4.8304]
[1736736370021,7.23685894,185.46,185.39,7.23685894]
[1736736370228,7.23685894,185.46,185.41,7.23685894]
[1736736370623,5.74,185.47,185.43,2.6976]
[1736736370830,5.74,185.47,185.43,7.23685894]
[1736736371330,5.74,185.47,185.41,9.93465894]
[1736736371827,2.6973,185.46,185.41,9.93465894]
[1736736372332,7.23685894,185.45,185.41,2.6978]
[1736736372732,2.6973,185.46,185.41,2.6978]
[1736736372936,7.23685894,185.45,185.41,2.6978]
[1736736373826,7.23685894,185.45,185.32,4.8304]
[1736736374033,7.23685894,185.43,185.32,4.8304]
[1736736374433,2.6979,185.41,185.36,2.6986]
[1736736374629,7.23685894,185.43,185.37,7.23685894]
[1736736375237,7.23685894,185.43,185.38,2.6982]
[1736736375539,7.23685894,185.43,185.37,7.23685894]
[1736736375731,7.23685894,185.45,185.4,2.6979]
[1736736375931,7.23685894,185.45,185.39,7.23685894]
[1736736377040,7.23685894,185.45,185.42,2.6977]
[1736736377531,7.23685894,185.47,185.43,2.6975]
[1736736377736,7.23685894,185.47,185.32,4.8304]
[1736736378036,7.23685894,185.47,185.4,7.23685894]
[1736736378735,7.23685894,185.47,185.42,2.6977]
[1736736378936,1.6762,185.51,185.4,7.23685894]
[1736736379133,1.6762,185.51,185.32,4.8304]
[1736736379134,7.23685894,185.49,185.45,2.6972]
[1736736379333,5.78,185.55,185.45,2.6972]
[1736736379334,8.76332689,185.54,185.45,2.6972]
[1736736379543,7.23685894,185.5,185.44,7.23685894]
[1736736380936,7.23685894,185.5,185.46,2.697]
[1736736381735,7.23685894,185.48,185.4,7.23685894]
[1736736381939,7.23685894,185.46,185.39,7.23685894]
[1736736382139,2.6973,185.45,185.39,7.23685894]
[1736736382439,7.23685894,185.46,185.41,2.6979]
[1736736383131,9.93405894,185.46,185.41,2.6979]
[1736736383939,9.93405894,185.46,185.4,2.698]
[1736736384140,9.93435894,185.44,185.38,7.23685894]
[1736736384336,7.23685894,185.44,185.38,7.23685894]
[1736736384837,8.76332689,185.54,185.38,7.23685894]
[1736736385038,7.23685894,185.44,185.38,7.23685894]
[1736736385240,7.23685894,185.44,185.4,2.6979]
[1736736386244,7.23685894,185.44,185.38,7.23685894]
[1736736386541,7.23685894,185.44,185.41,2.6978]
[1736736387343,2.6972,185.46,185.41,2.6978]
[1736736387640,7.23685894,185.45,185.41,2.6978]
[1736736388039,9.93415894,185.45,185.41,2.6978]
[1736736388241,7.23685894,185.43,185.38,2.6982]
[1736736388435,7.23685894,185.43,185.36,7.23685894]
[1736736388637,7.23685894,185.43,185.38,7.23685894]
[1736736388838,7.23685894,185.43,185.4,2.698]
[1736736390943,7.23685894,185.43,185.37,7.23685894]
[1736736392144,2.6967,185.49,185.37,7.23685894]
[1736736392451,7.23685894,185.46,185.43,2.6976]
[1736736393447,7.23685894,185.46,185.41,7.23685894]
[1736736393746,7.23685894,185.46,185.42,2.6977]
[1736736393943,7.23685894,185.46,185.39,7.23685894]
[1736736394248,7.23685894,185.46,185.4,2.6979]
[1736736395144,7.23685894,185.42,185.32,4.8304]
[1736736395440,7.23685894,185.38,185.32,4.8304]
[1736736395845,7.23685894,185.4,185.35,2.6986]
[1736736396049,7.23685894,185.42,185.35,7.23685894]
[1736736396251,2.6976,185.44,185.38,2.6982]
[1736736396546,7.23685894,185.44,185.37,7.23685894]
[1736736396948,12.99685894,185.46,185.39,7.23685894]
[1736736397650,12.99685894,185.46,185.42,2.6977]
[1736736397951,7.23685894,185.46,185.42,2.6977]
[1736736401446,9.93405894,185.46,185.4,2.6979]
[1736736401651,9.93405894,185.46,185.4,7.23685894]
[1736736401853,7.23685894,185.46,185.4,7.23685894]
[1736736403151,7.23685894,185.46,185.42,2.6977]
[1736736405652,2.697,185.47,185.42,2.6977]
[1736736406455,7.23685894,185.46,185.4,2.6979]
[1736736406753,7.23685894,185.47,185.4,7.23685894]
[1736736407652,2.6972,185.46,185.42,2.6977]
[1736736407852,8.53532648,185.51,185.42,7.23685894]
[1736736408154,7.23685894,185.5,185.42,7.23685894]
[1736736408750,9.93355894,185.5,185.45,2.6972]
[1736736411258,7.23685894,185.48,185.45,2.6972]
[1736736411559,7.23685894,185.48,185.43,2.6975]
[1736736411856,7.23685894,185.46,185.4,7.23685894]
[1736736412863,2.6974,185.45,185.4,9.93485894]
[1736736413849,7.23685894,185.46,185.41,2.6979]
[1736736414055,9.93405894,185.46,185.41,2.6979]
[1736736414254,8.53532648,185.51,185.43,2.6976]
[1736736414451,7.23685894,185.48,185.42,7.23685894]
[1736736414654,7.23685894,185.5,185.44,7.23685894]
[1736736414854,7.23685894,185.51,185.44,7.23685894]
[1736736416059,7.23685894,185.51,185.47,2.6969]
[1736736416368,7.23685894,185.51,185.44,7.23685894]
[1736736416369,9.93345894,185.51,185.44,7.23685894]
[1736736416554,7.23685894,185.49,185.45,2.6972]
[1736736416758,7.23685894,185.49,185.42,7.23685894]
[1736736417055,7.23685894,185.49,185.45,2.6973]
[1736736417558,7.23685894,185.49,185.42,7.23685894]
[1736736419258,7.23685894,185.49,185.45,2.6972]
[1736736422353,7.23685894,185.49,185.43,2.6975]
[1736736422665,7.23685894,185.45,185.4,7.23685894]
[1736736422959,7.23685894,185.43,185.38,2.6983]
[1736736423161,7.23685894,185.43,185.38,7.23685894]
[1736736423463,7.23685894,185.45,185.38,7.23685894]
[1736736423670,7.23685894,185.45,185.42,2.6977]
[1736736425568,7.23685894,185.45,185.39,7.23685894]
[1736736425763,7.23685894,185.45,185.41,2.6979]
[1736736426261,7.23685894,185.43,185.37,7.23685894]
[1736736426462,7.23685894,185.43,185.4,2.698]
[1736736426661,7.23685894,185.43,185.32,4.8304]
[1736736426861,7.23685894,185.43,185.37,7.23685894]
[1736736427064,4.8554,185.53,185.41,2.6979]
[1736736427065,2.6972,185.46,185.41,2.6979]
[1736736427260,7.23685894,185.44,185.41,2.6979]
[1736736427960,7.23685894,185.44,185.4,2.698]
[1736736428461,7.23685894,185.44,185.39,2.6981]
[1736736428861,7.23685894,185.44,185.32,4.8304]
[1736736428862,7.23685894,185.44,185.37,7.23685894]
[1736736429057,4.8554,185.53,185.39,2.6981]
[1736736429264,7.23685894,185.43,185.37,7.23685894]
[1736736432071,7.23685894,185.43,185.4,2.698]
[1736736434375,5.72,185.52,185.32,4.8304]
[1736736434376,2.697,185.48,185.42,2.6977]
[1736736434577,9.93385894,185.48,185.41,7.23685894]
[1736736435282,7.23685894,185.46,185.41,7.23685894]
[1736736435479,2.6974,185.45,185.39,7.23685894]
[1736736435678,7.23685894,185.44,185.39,7.23685894]
[1736736436375,9.93435894,185.44,185.39,7.23685894]
[1736736436573,9.93435894,185.44,185.39,9.93495894]
[1736736437275,2.6975,185.44,185.39,9.93495894]
[1736736437480,7.23685894,185.44,185.39,7.23685894]
[1736736438078,7.23685894,185.4,185.35,7.23685894]
[1736736438577,9.93495894,185.4,185.35,2.6988]
[1736736439281,9.93495894,185.4,185.34,9.93575894]
[1736736439679,2.6981,185.4,185.34,2.6989]
[1736736439878,7.23685894,185.38,185.32,2.6992]
[1736736440079,7.23685894,185.38,185.32,9.93605894]
[1736736440475,9.93515894,185.38,185.33,2.699]
[1736736440972,7.23685894,185.38,185.27,3.1518]
[1736736441178,7.23685894,185.38,185.32,7.23685894]
[1736736442184,7.23685894,185.38,185.33,2.6989]
[1736736444283,7.23685894,185.38,185.32,7.23685894]
[1736736444479,7.23685894,185.38,185.34,2.6988]
[1736736455693,7.23685894,185.36,185.32,2.6991]
[1736736456295,7.23685894,185.34,185.3,2.6994]
[1736736456489,7.23685894,185.34,185.29,7.23685894]
[1736736456691,7.23685894,185.36,185.29,7.23685894]
[1736736456985,7.23685894,185.36,185.31,2.6993]
[1736736457190,2.6983,185.38,185.27,3.1518]
[1736736457494,7.23685894,185.36,185.3,7.23685894]
[1736736457892,7.23685894,185.36,185.34,2.6989]
[1736736458291,7.23685894,185.36,185.29,7.23685894]
[1736736459296,7.23685894,185.36,185.31,2.6993]
[1736736459894,7.23685894,185.36,185.32,2.6992]
[1736736460495,9.93545894,185.36,185.31,2.6993]
[1736736460695,7.23685894,185.36,185.3,7.23685894]
[1736736460904,1.5507,185.42,185.32,7.23685894]
[1736736461197,183.92929299,185.55,185.38,7.23685894]
[1736736461390,7.23685894,185.46,185.4,7.23685894]
[1736736461595,7.23685894,185.46,185.42,2.6977]
[1736736461998,7.23685894,185.46,185.4,7.23685894]
[1736736462196,7.23685894,185.44,185.38,7.23685894]
[1736736462397,7.23685894,185.44,185.37,7.23685894]
[1736736462598,9.93495894,185.4,185.34,7.23685894]
[1736736462990,7.23685894,185.4,185.34,7.23685894]
[1736736463395,2.6982,185.39,185.34,9.93575894]
[1736736464002,7.23685894,185.4,185.34,9.93575894]
[1736736464497,7.23685894,185.4,185.35,2.6987]
[1736736466405,1.6153,185.43,185.27,3.1518]
[1736736466406,7.23685894,185.38,185.27,3.1518]
[1736736466606,7.23685894,185.38,185.32,7.23685894]
[1736736466902,7.23685894,185.4,185.34,7.23685894]
[1736736468099,7.23685894,185.4,185.35,2.6986]
[1736736468604,2.6982,185.39,185.34,2.6989]
[1736736469305,7.23685894,185.4,185.27,3.1518]
[1736736469501,9.93525894,185.38,185.32,2.6991]
[1736736469805,7.23685894,185.38,185.31,7.23685894]
[1736736470808,7.23685894,185.38,185.34,2.6989]
[1736736472206,9.93515894,185.38,185.34,2.6989]
[1736736472407,7.23685894,185.36,185.31,2.6993]
[1736736472708,3.3349,185.42,185.3,7.23685894]
[1736736472908,7.23685894,185.37,185.27,3.1518]
[1736736473111,7.23685894,185.37,185.3,7.23685894]
[1736736473609,7.23685894,185.37,185.33,2.6989]
[1736736474603,2.6982,185.39,185.34,2.6988]
[1736736474808,7.23685894,185.4,185.34,7.23685894]
[1736736475111,7.23685894,185.4,185.33,7.23685894]
[1736736475705,3.3349,185.42,185.33,7.23685894]
[1736736475909,7.23685894,185.41,185.35,7.23685894]
[1736736476305,7.23685894,185.41,185.36,2.6986]
[1736736476511,1.5715,185.49,185.37,7.23685894]
[1736736476708,7.23685894,185.45,185.39,7.23685894]
[1736736477305,7.23685894,185.45,185.31,5.72]
[1736736477508,7.23685894,185.45,185.39,7.23685894]
[1736736478211,7.23685894,185.45,185.41,2.6979]
[1736736479914,7.23685894,185.45,185.39,9.93485894]
[1736736480108,7.23685894,185.43,185.37,7.23685894]
[1736736480506,7.23685894,185.45,185.39,7.23685894]
[1736736481112,7.23685894,185.45,185.41,2.6979]
[1736736481714,7.23685894,185.43,185.38,2.6982]
[1736736481910,7.23685894,185.43,185.37,7.23685894]
[1736736482515,7.23685894,185.41,185.35,7.23685894]
[1736736484016,1.5715,185.49,185.37,7.23685894]
[1736736484215,7.23685894,185.44,185.37,7.23685894]
[1736736484411,7.23685894,185.44,185.39,2.698]
[1736736484610,7.23685894,185.44,185.39,7.23685894]
[1736736485013,7.23685894,185.46,185.39,7.23685894]
[1736736485921,7.23685894,185.46,185.41,2.6977]
[1736736487512,1.5715,185.49,185.39,7.23685894]
[1736736487719,7.23685894,185.48,185.41,7.23685894]
[1736736487916,0.19189,185.5,185.45,7.23685894]
[1736736488112,0.19189,185.5,185.49,7.23685894]
[1736736488318,0.19189,185.5,185.49,9.93355894]
[1736736488515,0.19189,185.5,185.49,2.6967]
[1736736488818,7.23685894,185.54,185.45,4.7512]
[1736736489021,7.23685894,185.52,185.45,4.7512]
[1736736489218,7.23685894,185.5,185.45,11.98805894]
[1736736489417,11.31228048,185.52,185.45,3.1024]
[1736736489626,11.31228048,185.52,185.4,11.31228048]
[1736736489813,11.31228048,185.49,185.38,5.72]
[1736736491014,2.697,185.48,185.41,2.6979]
[1736736491219,11.31228048,185.49,185.38,5.72]
[1736736491517,11.31228048,185.52,185.42,2.6977]
[1736736491919,2.6969,185.48,185.42,2.6977]
[1736736492121,2.6969,185.48,185.4,2.6979]
[1736736492424,2.6973,185.45,185.38,5.72]
[1736736492815,11.31228048,185.46,185.37,1.6464]
[1736736493123,2.6976,185.44,185.34,11.31228048]
[1736736494419,2.6976,185.44,185.37,2.6985]
[1736736497931,11.31228048,185.46,185.35,2.6986]
[1736736498135,1.5233,185.45,185.35,2.6986]
[1736736498632,2.698,185.41,185.35,2.6986]
[1736736499428,14.00998048,185.43,185.36,2.6986]
[1736736499729,1.5233,185.45,185.37,11.31228048]
[1736736500032,5.72,185.46,185.41,2.6979]
[1736736500223,12.99898048,185.52,185.4,11.31228048]
[1736736500834,11.31228048,185.49,185.37,11.31228048]
[1736736501528,2.6969,185.48,185.4,2.6979]
[1736736501724,12.99898048,185.52,185.4,11.31228048]
[1736736502227,2.6969,185.48,185.43,2.6976]
[1736736502429,12.99898048,185.52,185.4,11.31228048]
[1736736502730,11.31228048,185.49,185.37,11.31228048]
[1736736503235,2.6973,185.46,185.39,2.698]
[1736736503434,2.6973,185.46,185.37,11.31228048]
[1736736504040,2.6973,185.46,185.4,2.698]
[1736736504537,11.31228048,185.49,185.37,11.31228048]
[1736736504939,11.31228048,185.49,185.39,2.6982]
[1736736505544,11.31228048,185.49,185.41,2.6979]
[1736736506235,2.697,185.47,185.41,2.6979]
[1736736506641,2.697,185.47,185.42,2.6977]
[1736736507343,11.31228048,185.49,185.42,2.6977]
[1736736507835,12.99898048,185.52,185.44,2.6974]
[1736736508035,2.6968,185.49,185.4,11.31228048]
[1736736508243,1.6867,185.52,185.43,11.31228048]
[1736736509041,12.99898048,185.52,185.4,11.31228048]
[1736736509444,2.6971,185.47,185.42,2.6977]
[1736736509641,11.31228048,185.48,185.32,12.2154168]
[1736736509839,11.31228048,185.42,185.32,10.6772168]
[1736736510035,2.698,185.4,185.34,2.6988]
[1736736510342,11.31228048,185.42,185.32,7.4526168]
[1736736510542,3.1573,185.46,185.29,12.84378048]
[1736736510543,11.31228048,185.39,185.29,12.84378048]
[1736736510841,2.6986,185.36,185.3,2.6995]
[1736736512343,2.6988,185.35,185.29,14.01188048]
[1736736513343,11.31228048,185.39,185.3,2.6994]
[1736736513550,11.31228048,185.39,185.29,11.31228048]
[1736736514439,11.31228048,185.39,185.32,2.6992]
[1736736514633,1.6425,185.41,185.32,2.6992]
[1736736515943,1.6425,185.41,185.29,11.31228048]
[1736736516543,2.6982,185.4,185.34,2.6989]
[1736736517145,1.6425,185.41,185.29,11.31228048]
[1736736518048,2.6986,185.37,185.31,2.6993]
[1736736518546,11.31228048,185.39,185.29,11.31228048]
[1736736518751,2.6988,185.35,185.3,2.6994]
[1736736518941,11.31228048,185.39,185.27,3.2136]
[1736736519349,2.699,185.34,185.28,2.6998]
[1736736519741,11.31228048,185.39,185.28,2.6998]
[1736736519944,2.6991,185.33,185.28,2.6998]
[1736736520446,2.6991,185.33,185.27,3.2136]
[1736736520447,3.2417,185.38,185.27,5.9135]
[1736736520645,2.6991,185.33,185.27,5.9135]
[1736736522548,2.6994,185.31,185.25,2.7002]
[1736736522743,11.31228048,185.36,185.23,1.6636]
[1736736522943,11.31228048,185.33,185.23,1.6636]
[1736736524251,5.72,185.37,185.15,4.9202]
[1736736524252,11.31228048,185.27,185.15,4.9202]
[1736736524542,2.7001,185.26,185.19,2.701]
[1736736524749,11.31228048,185.27,185.16,11.31228048]
[1736736525245,11.31228048,185.27,185.2,2.7009]
[1736736525246,14.01238048,185.27,185.2,2.7009]
[1736736525650,11.31228048,185.27,185.2,2.7009]
[1736736526049,2.6999,185.27,185.2,2.7009]
[1736736526248,11.31228048,185.3,185.19,11.31228048]
[1736736526444,14.01188048,185.3,185.19,11.31228048]
[1736736526652,11.31228048,185.3,185.19,11.31228048]
[1736736526848,11.31228048,185.3,185.22,2.7006]
[1736736527150,2.6996,185.29,185.19,11.31228048]
[1736736527346,2.6996,185.29,185.22,2.7007]
[1736736527550,2.6996,185.29,185.19,11.31228048]
[1736736528353,2.6996,185.29,185.22,2.7007]
[1736736529359,11.31228048,185.3,185.19,11.31228048]
[1736736529555,11.31228048,185.3,185.23,2.7004]
[1736736529953,2.6998,185.28,185.19,11.31228048]
[1736736530153,2.6998,185.28,185.22,2.7006]
[1736736530554,11.31228048,185.3,185.2,2.7008]
[1736736530749,11.31228048,185.3,185.19,11.31228048]
[1736736531754,2.6999,185.27,185.21,2.7007]
[1736736532257,11.31228048,185.3,185.15,4.9202]
[1736736532457,11.31228048,185.3,185.2,2.7009]
[1736736533352,14.01188048,185.3,185.23,2.7005]
[1736736534052,2.6997,185.29,185.23,2.7005]
[1736736534358,11.31228048,185.3,185.18,11.31228048]
[1736736534559,11.31228048,185.3,185.24,2.7003]
[1736736536158,14.01178048,185.3,185.24,2.7003]
[1736736536758,14.01178048,185.3,185.25,2.7002]
[1736736537158,2.6995,185.3,185.25,2.7002]
[1736736537360,1.5572,185.32,185.21,11.31228048]
[1736736537957,4.2565,185.32,185.26,2.7]